bitfinex/quotes_SOLUSD_20241110
["timestamp","ask_amount","ask_price","bid_price","bid_amount"]
[1731259845900,11.85257402,211.39,211.33,16.5212]
[1731259846213,11.85257402,211.37,211.33,16.5212]
[1731259846389,11.85257402,211.36,211.33,16.5212]
[1731259846715,11.85257402,211.35,211.33,16.5212]
[1731259847210,11.85257402,211.42,211.33,16.5212]
[1731259847211,11.85257402,211.37,211.33,16.5212]
[1731259849214,11.85257402,211.34,211.24,11.85257402]
[1731259849416,11.85257402,211.32,211.25,16.1939]
[1731259850311,11.85257402,211.33,211.26,11.85257402]
[1731259850695,11.85257402,211.33,211.25,16.1939]
[1731259850914,11.85257402,211.31,211.25,16.1939]
[1731259851114,11.85257402,211.32,211.25,28.04647402]
[1731259851498,11.85257402,211.33,211.26,11.85257402]
[1731259852404,11.85257402,211.34,211.27,11.85257402]
[1731259852800,11.85257402,211.37,211.3,11.85257402]
[1731259853519,11.85257402,211.36,211.29,11.85257402]
[1731259856819,11.85257402,211.37,211.3,11.85257402]
[1731259857502,43.776884,211.43,211.3,11.85257402]
[1731259857842,11.85257402,211.37,211.3,11.85257402]
[1731259858715,11.85257402,211.36,211.27,6.4195]
[1731259858904,11.85257402,211.36,211.29,11.85257402]
[1731259860615,11.85257402,211.38,211.31,11.85257402]
[1731259861327,11.85257402,211.39,211.28,37.966884]
[1731259861512,11.85257402,211.39,211.32,11.85257402]
[1731259862521,11.85257402,211.38,211.31,11.85257402]
[1731259863103,147.2663,211.41,211.31,11.85257402]
[1731259863315,11.85257402,211.39,211.32,11.85257402]
[1731259863524,11.85257402,211.38,211.31,11.85257402]
[1731259864316,11.85257402,211.34,211.25,16.1939]
[1731259864520,11.85257402,211.32,211.25,16.1939]
[1731259864820,11.85257402,211.38,211.3,11.85257402]
[1731259865134,11.85257402,211.37,211.3,11.85257402]
[1731259865427,11.85257402,211.37,211.29,11.85257402]
[1731259865604,11.85257402,211.36,211.29,11.85257402]
[1731259867625,28.506884,211.42,211.29,11.85257402]
[1731259867820,11.85257402,211.37,211.29,11.85257402]
[1731259868527,28.506884,211.42,211.3,11.85257402]
[1731259868911,11.85257402,211.37,211.3,11.85257402]
[1731259869108,11.85257402,211.39,211.27,0.1]
[1731259869310,16.5251,211.49,211.37,11.85257402]
[1731259869527,11.85257402,211.44,211.37,11.85257402]
[1731259869823,11.85257402,211.42,211.36,11.85257402]
[1731259870028,16.5251,211.49,211.33,23.776884]
[1731259870212,16.5251,211.49,211.39,11.85257402]
[1731259870415,11.85257402,211.46,211.39,11.85257402]
[1731259870831,35.48122702,211.53,211.39,11.85257402]
[1731259870832,11.85257402,211.45,211.39,11.85257402]
[1731259871005,11.85257402,211.45,211.33,37.966884]
[1731259871006,11.85257402,211.45,211.38,11.85257402]
[1731259871207,11.85257402,211.43,211.36,11.85257402]
[1731259871430,11.85257402,211.39,211.32,15.4601]
[1731259871604,11.85257402,211.39,211.32,27.31267402]
[1731259871810,11.85257402,211.37,211.32,15.4601]
[1731259872307,11.85257402,211.39,211.32,27.31267402]
[1731259872728,23.1659,211.45,211.33,11.85257402]
[1731259872729,11.85257402,211.4,211.33,11.85257402]
[1731259873430,16.5251,211.45,211.34,11.85257402]
[1731259873743,11.85257402,211.4,211.33,35.62945802]
[1731259873913,11.85257402,211.38,211.32,15.4601]
[1731259874420,11.85257402,211.37,211.32,15.4601]
[1731259874825,11.85257402,211.43,211.36,11.85257402]
[1731259875436,11.85257402,211.43,211.37,11.85257402]
[1731259875608,11.85257402,211.45,211.38,31.85257402]
[1731259875815,11.85257402,211.46,211.4,20.0]
[1731259876234,4.7272,211.54,211.4,20.0]
[1731259876235,147.2663,211.54,211.43,11.85257402]
[1731259876539,11.85257402,211.44,211.41,15.4601]
[1731259877320,11.85257402,211.47,211.41,15.4601]
[1731259877513,11.85257402,211.44,211.41,15.4601]
[1731259877720,11.85257402,211.46,211.41,15.4601]
[1731259878019,11.85257402,211.46,211.35,15.4601]
[1731259878227,11.85257402,211.4,211.35,15.4601]
[1731259878737,11.85257402,211.41,211.35,15.4601]
[1731259878926,11.85257402,211.4,211.35,15.4601]
[1731259879629,11.85257402,211.37,211.35,15.4601]
[1731259880232,11.85257402,211.38,211.35,15.4601]
[1731259881337,11.85257402,211.4,211.35,15.4601]
[1731259881519,11.85257402,211.42,211.36,20.0]
[1731259881716,11.85257402,211.43,211.36,31.85257402]
[1731259882035,11.85257402,211.44,211.37,11.85257402]
[1731259882439,6.6408,211.52,211.38,31.85257402]
[1731259882440,11.85257402,211.45,211.38,31.85257402]
[1731259882617,11.85257402,211.45,211.35,15.4601]
[1731259882618,11.85257402,211.45,211.4,20.0]
[1731259883133,11.85257402,211.48,211.42,11.85257402]
[1731259883432,11.85257402,211.48,211.43,20.0]
[1731259884135,11.85257402,211.49,211.43,11.85257402]
[1731259884827,167.17277437,211.56,211.41,0.1]
[1731259885026,11.85257402,211.49,211.43,43.776884]
[1731259885339,11.85257402,211.47,211.43,20.0]
[1731259885519,11.85257402,211.53,211.42,20.0]
[1731259885727,11.85257402,211.43,211.37,11.85257402]
[1731259885917,11.85257402,211.43,211.36,11.85257402]
[1731259886117,11.85257402,211.47,211.4,11.85257402]
[1731259886433,11.85257402,211.44,211.38,11.85257402]
[1731259886635,11.85257402,211.45,211.38,11.85257402]
[1731259886840,11.85257402,211.46,211.39,11.85257402]
[1731259887019,11.85257402,211.47,211.4,11.85257402]
[1731259887854,11.85257402,211.48,211.41,31.85257402]
[1731259888035,11.85257402,211.47,211.41,31.85257402]
[1731259888715,11.85257402,211.48,211.41,31.85257402]
[1731259888920,11.85257402,211.49,211.42,11.85257402]
[1731259889122,11.85257402,211.49,211.43,20.0]
[1731259890521,11.85257402,211.45,211.38,11.85257402]
[1731259890722,11.85257402,211.48,211.41,11.85257402]
[1731259891526,11.85257402,211.46,211.41,20.0]
[1731259891726,11.85257402,211.45,211.41,20.0]
[1731259892125,11.85257402,211.44,211.38,20.0]
[1731259893430,11.85257402,211.44,211.39,20.0]
[1731259893637,11.85257402,211.43,211.39,20.0]
[1731259893831,11.85257402,211.44,211.39,20.0]
[1731259894030,11.85257402,211.47,211.4,11.85257402]
[1731259895441,11.85257402,211.49,211.43,20.0]
[1731259895751,11.85257402,211.51,211.45,20.0]
[1731259895958,11.85257402,211.53,211.47,20.0]
[1731259896947,11.85257402,211.53,211.47,31.85257402]
[1731259897139,11.85257402,211.52,211.47,20.0]
[1731259898436,11.85257402,211.54,211.47,31.85257402]
[1731259898639,61.85257402,211.57,211.5,31.85257402]
[1731259899759,50.0,211.57,211.52,20.0]
[1731259899934,50.0,211.57,211.53,11.85257402]
[1731259900252,50.0,211.57,211.56,71.60265802]
[1731259902937,33.208,211.57,211.56,85.89265802]
[1731259906052,33.0826,211.57,211.56,85.99265802]
[1731259907040,33.0826,211.57,211.56,85.89265802]
[1731259907241,33.0826,211.57,211.56,85.99265802]
[1731259908367,32.9572,211.57,211.56,85.99265802]
[1731259909843,32.9572,211.57,211.56,62.21577402]
[1731259911165,32.9572,211.57,211.56,85.99265802]
[1731259912959,32.9572,211.57,211.56,85.89265802]
[1731259913359,32.9572,211.57,211.56,26.14257402]
[1731259914058,32.9572,211.57,211.56,26.24257402]
[1731259914563,11.85257402,211.72,211.61,0.2]
[1731259914754,11.85257402,211.72,211.66,11.85257402]
[1731259914948,11.85257402,211.72,211.67,20.0]
[1731259915142,15.9117,211.75,211.67,20.0]
[1731259915143,11.85257402,211.71,211.67,20.0]
[1731259915362,11.85257402,211.7,211.67,19.0]
[1731259915556,11.85257402,211.68,211.61,35.62945802]
[1731259915950,11.85257402,211.72,211.66,11.85257402]
[1731259916662,11.85257402,211.74,211.68,11.85257402]
[1731259916866,11.85257402,211.74,211.67,37.966884]
[1731259916867,15.9117,211.75,211.7,11.85257402]
[1731259917166,11.85257402,211.74,211.68,23.776884]
[1731259917347,15.9117,211.75,211.66,57.966884]
[1731259917841,11.85257402,211.73,211.68,20.0]
[1731259918176,11.85257402,211.72,211.68,20.0]
[1731259918351,11.85257402,211.73,211.68,20.0]
[1731259918545,11.85257402,211.73,211.67,20.0]
[1731259918750,11.85257402,211.72,211.67,20.0]
[1731259918963,15.9279,211.8,211.7,26.14257402]
[1731259919172,8.02794673,211.89,211.76,21.8179]
[1731259919379,15.9279,211.96,211.79,43.876884]
[1731259919544,11.85257402,211.93,211.83,57.966884]
[1731259919873,11.85257402,211.93,211.86,36.5202]
[1731259920245,15.9279,211.96,211.86,40.1206]
[1731259920565,11.85257402,211.91,211.86,16.5202]
[1731259920871,11.85257402,211.89,211.86,16.5202]
[1731259921070,11.85257402,211.89,211.86,11.8002]
[1731259921362,20.6459,211.96,211.86,16.5202]
[1731259921363,11.85257402,211.87,211.86,16.5202]
[1731259922061,22.0912,211.86,211.8,11.8035]
[1731259922270,11.85257402,211.82,211.8,11.8035]
[1731259923070,11.85257402,211.81,211.8,11.8035]
[1731259923242,22.0912,211.86,211.8,11.8035]
[1731259923446,11.85257402,211.81,211.8,11.8035]
[1731259923862,11.85257402,211.81,211.75,23.6117]
[1731259924071,11.85257402,211.8,211.75,23.6117]
[1731259924253,11.85257402,211.79,211.75,23.6117]
[1731259924456,11.85257402,211.8,211.75,23.6117]
[1731259924845,11.85257402,211.78,211.75,23.6117]
[1731259925253,33.94377402,211.86,211.75,23.6117]
[1731259925254,11.85257402,211.79,211.75,23.6117]
[1731259925649,11.85257402,211.78,211.75,23.6117]
[1731259925954,33.94377402,211.86,211.75,23.6117]
[1731259925955,11.85257402,211.77,211.75,23.6117]
[1731259926275,22.0912,211.86,211.75,23.6117]
[1731259926449,11.85257402,211.79,211.75,23.6117]
[1731259926648,11.85257402,211.77,211.75,23.6117]
[1731259927066,11.85257402,211.77,211.72,16.5312]
[1731259927570,11.85257402,211.79,211.72,16.5312]
[1731259927953,11.85257402,211.77,211.72,11.808]
[1731259928864,11.85257402,211.75,211.72,11.808]
[1731259929174,11.85257402,211.76,211.72,11.808]
[1731259929574,11.85257402,211.75,211.72,11.808]
[1731259929953,11.85257402,211.74,211.72,11.808]
[1731259930354,11.85257402,211.73,211.72,11.808]
[1731259932061,0.1,211.8,211.72,11.808]
[1731259932062,6.1633,211.86,211.72,11.85257402]
[1731259932264,11.85257402,211.83,211.75,11.85257402]
[1731259932573,6.1633,211.86,211.7,6.5358]
[1731259932574,11.85257402,211.79,211.71,11.85257402]
[1731259932959,11.85257402,211.79,211.72,20.0]
[1731259933963,11.85257402,211.83,211.74,11.85257402]
[1731259934668,11.85257402,211.83,211.75,16.5288]
[1731259935181,11.85257402,211.83,211.76,11.85257402]
[1731259935678,18.01587402,211.86,211.78,11.85257402]
[1731259936783,11.85257402,211.8,211.79,11.8041]
[1731259937589,27.20967402,211.84,211.79,11.8041]
[1731259937893,15.3571,211.89,211.83,11.85257402]
[1731259938676,13.8771,211.89,211.83,11.85257402]
[1731259938880,11.85257402,211.93,211.85,11.85257402]
[1731259939378,11.85257402,211.9,211.84,40.1245]
[1731259940068,0.1,211.94,211.84,16.5218]
[1731259940271,11.85257402,211.89,211.84,16.5218]
[1731259940473,11.85257402,211.9,211.84,16.5218]
[1731259940975,11.85257402,211.91,211.84,16.5218]
[1731259941365,11.85257402,211.93,211.85,11.85257402]
[1731259941586,27.20967402,211.94,211.86,11.85257402]
[1731259941766,11.85257402,211.93,211.86,11.85257402]
[1731259942078,11.85257402,211.9,211.78,20.0]
[1731259942267,11.85257402,211.92,211.84,11.85257402]
[1731259942467,11.85257402,211.92,211.85,11.85257402]
[1731259942672,15.3571,211.94,211.76,63.8513]
[1731259942673,11.85257402,211.9,211.77,20.0]
[1731259942979,11.85257402,211.9,211.83,11.85257402]
[1731259943363,11.85257402,211.9,211.84,16.5218]
[1731259943565,11.85257402,211.91,211.84,28.37437402]
[1731259943764,11.85257402,211.92,211.84,28.37437402]
[1731259943968,11.85257402,211.9,211.84,16.5218]
[1731259945192,11.85257402,211.9,211.83,11.85257402]
[1731259945973,11.85257402,211.9,211.82,23.6043]
[1731259946178,11.85257402,211.88,211.82,23.6043]
[1731259946369,11.85257402,211.88,211.82,40.1276]
[1731259946572,11.85257402,211.9,211.82,51.98017402]
[1731259947890,11.85257402,211.9,211.82,23.6043]
[1731259948067,11.85257402,211.9,211.83,11.85257402]
[1731259948271,11.85257402,211.9,211.82,23.6043]
[1731259948272,11.85257402,211.88,211.82,23.6043]
[1731259948770,11.85257402,211.9,211.82,35.45687402]
[1731259949271,35.62945802,211.93,211.85,11.85257402]
[1731259949872,11.85257402,211.93,211.85,11.85257402]
[1731259950082,11.85257402,211.91,211.86,16.5202]
[1731259950286,11.85257402,211.9,211.86,16.5202]
[1731259951096,11.85257402,211.9,211.86,11.8002]
[1731259951765,11.85257402,211.91,211.86,11.8002]
[1731259952197,11.85257402,211.91,211.84,11.85257402]
[1731259952701,15.3571,211.94,211.86,11.85257402]
[1731259952702,11.85257402,211.93,211.86,11.85257402]
[1731259952989,15.3571,211.94,211.87,11.85257402]
[1731259953191,15.3571,211.94,211.88,11.85257402]
[1731259953395,0.1,212.0,211.82,23.6043]
[1731259953396,11.85257402,211.98,211.91,11.85257402]
[1731259953891,11.85257402,211.98,211.82,23.6043]
[1731259953892,11.85257402,211.96,211.89,11.85257402]
[1731259954189,15.1323,211.99,211.9,28.36977402]
[1731259954190,11.85257402,211.97,211.9,28.36977402]
[1731259954374,11.85257402,211.97,211.9,16.5172]
[1731259954888,11.85257402,211.98,211.9,28.36977402]
[1731259955075,11.85257402,211.98,211.91,11.85257402]
[1731259955380,15.1323,211.99,211.9,16.5172]
[1731259955381,26.98487402,211.99,211.9,16.5172]
[1731259955587,26.98487402,211.99,211.92,11.85257402]
[1731259955785,11.85257402,211.98,211.93,11.7963]
[1731259956090,11.85257402,211.97,211.93,11.7963]
[1731259957983,11.85257402,211.98,211.93,11.7963]
[1731259958199,15.1323,212.04,211.93,11.7963]
[1731259958200,11.85257402,211.97,211.93,11.7963]
[1731259958698,11.85257402,211.95,211.93,11.7963]
[1731259958997,11.85257402,211.95,211.89,40.115]
[1731259959198,0.1,212.02,211.9,11.85257402]
[1731259959498,11.85257402,211.96,211.89,51.96757402]
[1731259959674,11.85257402,211.96,211.89,40.115]
[1731259960694,11.85257402,211.96,211.89,51.96757402]
[1731259961000,11.85257402,211.97,211.89,51.96757402]
[1731259961173,15.1323,212.04,211.94,11.85257402]
[1731259961374,11.85257402,212.0,211.89,63.7121]
[1731259961579,11.85257402,211.98,211.9,11.85257402]
[1731259961899,11.85257402,211.97,211.9,11.85257402]
[1731259962486,19.8484,212.04,211.89,75.56467402]
[1731259962487,11.85257402,211.96,211.89,75.56467402]
[1731259962687,11.85257402,211.98,211.9,11.85257402]
[1731259962890,11.85257402,211.98,211.89,63.7121]
[1731259963098,11.85257402,211.98,211.9,11.85257402]
[1731259963684,11.85257402,211.98,211.91,11.85257402]
[1731259963879,11.85257402,211.98,211.92,35.3907]
[1731259964078,11.85257402,211.99,211.92,35.3907]
[1731259964486,11.85257402,211.98,211.92,35.3907]
[1731259965189,11.85257402,211.97,211.92,35.3907]
[1731259965397,11.85257402,211.98,211.92,35.3907]
[1731259965576,11.85257402,211.99,211.92,35.3907]
[1731259965903,11.85257402,211.99,211.92,51.96197402]
[1731259966288,11.85257402,212.01,211.94,11.85257402]
[1731259966993,11.85257402,212.01,211.93,11.85257402]
[1731259967995,0.12549,211.99,211.94,11.7957]
[1731259968200,11.85257402,211.94,211.89,23.5971]
[1731259968401,23.902374,211.99,211.89,23.5971]
[1731259968402,11.85257402,211.92,211.89,23.5971]
[1731259968699,11.85257402,211.92,211.85,16.5211]
[1731259969894,11.85257402,211.92,211.8,21.29675787]
[1731259969895,11.85257402,211.89,211.83,4.7205]
[1731259970202,15.5121,211.95,211.84,11.85257402]
[1731259970422,11.85257402,211.94,211.86,11.85257402]
[1731259970791,11.85257402,211.94,211.83,11.8019]
[1731259970981,11.85257402,211.94,211.86,11.85257402]
[1731259971382,11.85257402,211.94,211.83,11.8019]
[1731259971587,11.85257402,211.94,211.86,11.85257402]
[1731259972388,11.85257402,211.92,211.87,16.5194]
[1731259973387,11.85257402,211.9,211.87,11.7996]
[1731259973585,11.85257402,211.88,211.87,11.7996]
[1731259974501,11.85257402,211.88,211.84,4.7205]
[1731259974707,11.85257402,211.85,211.84,4.7205]
[1731259974896,11.85257402,211.87,211.84,16.5218]
[1731259975489,11.85257402,211.87,211.81,23.606]
[1731259975886,11.85257402,211.85,211.81,23.606]
[1731259976587,11.85257402,211.85,211.79,16.5257]
[1731259976794,11.85257402,211.83,211.79,16.5257]
[1731259977011,11.85257402,211.81,211.79,16.5257]
[1731259977506,15.5121,211.89,211.79,28.37827402]
[1731259977682,15.5121,211.89,211.8,11.85257402]
[1731259977683,11.85257402,211.87,211.8,11.85257402]
[1731259977888,11.85257402,211.86,211.79,28.37827402]
[1731259978203,11.85257402,211.86,211.79,16.5257]
[1731259978902,11.85257402,211.86,211.79,23.65667402]
[1731259980203,15.5121,211.89,211.82,11.85257402]
[1731259980204,11.85257402,211.89,211.82,11.85257402]
[1731259980390,11.85257402,211.9,211.83,11.85257402]
[1731259980585,11.85257402,211.9,211.79,40.1339]
[1731259980789,11.85257402,211.89,211.82,11.85257402]
[1731259980993,11.85257402,211.9,211.82,11.85257402]
[1731259981300,11.85257402,211.91,211.83,11.85257402]
[1731259981605,6.0102,211.96,211.89,11.85257402]
[1731259981606,11.85257402,211.96,211.89,11.85257402]
[1731259981987,11.85257402,211.95,211.89,16.5179]
[1731259982203,11.85257402,211.93,211.89,16.5179]
[1731259982995,11.85257402,211.96,211.89,16.5179]
[1731259983203,11.85257402,211.95,211.89,16.5179]
[1731259983507,11.85257402,211.93,211.89,16.5179]
[1731259983801,11.85257402,211.92,211.89,16.5179]
[1731259983996,11.85257402,211.93,211.89,11.7985]
[1731259984386,11.85257402,211.95,211.89,11.7985]
[1731259984910,11.85257402,211.93,211.89,11.7985]
[1731259985983,11.85257402,211.95,211.89,11.7985]
[1731259987194,11.85257402,211.97,211.89,23.65107402]
[1731259988206,11.85257402,211.9,211.89,11.7985]
[1731259988401,11.85257402,211.92,211.89,11.7985]
[1731259988599,11.85257402,211.92,211.85,11.85257402]
[1731259989202,11.85257402,211.92,211.85,35.45387402]
[1731259989815,11.85257402,211.92,211.85,34.95387402]
[1731259990294,15.5121,211.97,211.87,11.85257402]
[1731259990295,11.85257402,211.94,211.87,11.85257402]
[1731259990500,11.85257402,211.96,211.87,11.85257402]
[1731259990704,27.36467402,211.97,211.89,11.85257402]
[1731259991493,11.85257402,211.96,211.88,11.85257402]
[1731259992213,11.85257402,211.95,211.87,11.85257402]
[1731259992415,11.85257402,211.95,211.89,16.5179]
[1731259992928,11.85257402,211.96,211.89,16.5179]
[1731259994008,11.85257402,211.9,211.89,11.7985]
[1731259994191,11.85257402,211.9,211.89,16.5179]
[1731259994395,11.85257402,211.91,211.89,16.5179]
[1731259994792,23.776884,211.89,211.87,4.7196]
[1731259994997,11.85257402,211.88,211.87,4.7196]
[1731259995407,11.85257402,211.88,211.85,11.8006]
[1731259995623,11.85257402,211.87,211.85,16.5207]
[1731259996108,11.85257402,211.87,211.81,16.5242]
[1731259996312,11.85257402,211.84,211.81,16.5242]
[1731259996501,11.85257402,211.88,211.81,51.98277402]
[1731259996705,11.85257402,211.89,211.81,51.98277402]
[1731259996903,6.4161,211.93,211.81,40.1302]
[1731259997219,11.85257402,211.84,211.81,16.5242]
[1731259997994,11.85257402,211.84,211.81,11.803]
[1731260000615,11.85257402,211.86,211.81,11.803]
[1731260002619,11.85257402,211.87,211.81,11.803]
[1731260002821,11.85257402,211.9,211.83,11.85257402]
[1731260003401,11.85257402,211.9,211.82,11.85257402]
[1731260003814,11.85257402,211.89,211.82,11.85257402]
[1731260004016,11.85257402,211.89,211.83,16.5226]
[1731260004201,11.85257402,211.87,211.83,16.5226]
[1731260005210,11.85257402,211.87,211.83,11.8019]
[1731260005526,11.85257402,211.88,211.83,11.8019]
[1731260005729,11.85257402,211.87,211.83,11.8019]
[1731260007031,11.85257402,211.88,211.83,11.8019]
[1731260007711,11.85257402,211.87,211.83,11.8019]
[1731260008812,11.85257402,211.88,211.83,11.8019]
[1731260009017,11.85257402,211.91,211.83,23.65447402]
[1731260009215,11.85257402,211.9,211.83,11.8019]
[1731260009420,23.28569212,211.94,211.85,11.85257402]
[1731260009620,11.85257402,211.92,211.84,11.85257402]
[1731260009827,11.85257402,211.91,211.83,23.65447402]
[1731260010029,11.85257402,211.9,211.83,23.65447402]
[1731260010413,11.85257402,211.91,211.83,28.37517402]
[1731260011126,11.85257402,211.89,211.83,16.5226]
[1731260011326,11.85257402,211.9,211.83,28.37517402]
[1731260011628,16.3296,212.06,211.9,20.0]
[1731260011822,11.85257402,212.04,211.96,11.85257402]
[1731260012440,11.85257402,212.06,211.99,16.5102]
[1731260012911,11.85257402,212.04,211.99,16.5102]
[1731260014132,11.85257402,212.04,211.99,11.793]
[1731260014327,11.85257402,212.07,211.99,23.64557402]
[1731260014638,0.1,212.1,211.99,11.793]
[1731260014639,11.85257402,212.03,211.99,11.793]
[1731260015137,11.85257402,212.04,211.99,11.793]
[1731260015459,11.85257402,212.05,211.99,11.793]
[1731260015724,11.85257402,212.03,211.99,11.793]
[1731260016512,11.85257402,212.0,211.99,11.793]
[1731260017636,11.85257402,212.0,211.9,6.5395]
[1731260017814,0.1,212.03,211.9,6.5395]
[1731260017815,11.85257402,211.96,211.9,6.5395]
[1731260018314,11.85257402,211.97,211.9,18.39207402]
[1731260018619,11.85257402,211.94,211.87,11.85257402]
[1731260018820,11.85257402,211.93,211.86,18.39207402]
[1731260019031,11.85257402,211.94,211.86,18.39207402]
[1731260019234,11.85257402,211.96,211.89,11.85257402]
[1731260019740,11.85257402,211.95,211.87,11.85257402]
[1731260019931,4.817,212.0,211.86,6.5395]
[1731260019932,11.85257402,211.93,211.86,18.39207402]
[1731260020118,11.85257402,211.92,211.86,6.5395]
[1731260020317,11.85257402,211.93,211.86,6.5395]
[1731260020531,11.85257402,211.93,211.86,18.39207402]
[1731260021136,11.85257402,211.91,211.84,11.85257402]
[1731260021530,16.67027402,211.97,211.82,6.5395]
[1731260021838,11.85257402,211.91,211.83,11.85257402]
[1731260023228,11.85257402,211.87,211.82,6.5395]
[1731260023422,11.85257402,211.87,211.8,15.215]
[1731260023423,11.85257402,211.86,211.79,11.85257402]
[1731260023831,11.85257402,211.87,211.79,11.85257402]
[1731260024336,11.85257402,211.87,211.8,4.7214]
[1731260024650,11.85257402,211.92,211.78,4.7218]
[1731260024827,11.85257402,211.92,211.85,11.85257402]
[1731260025031,11.85257402,211.92,211.84,11.85257402]
[1731260025234,11.85257402,211.91,211.83,11.85257402]
[1731260025428,11.85257402,211.93,211.85,11.85257402]
[1731260025734,11.85257402,211.93,211.86,11.85257402]
[1731260025934,11.85257402,211.92,211.84,11.85257402]
[1731260026246,11.85257402,211.91,211.84,11.85257402]
[1731260026426,11.85257402,211.9,211.83,11.85257402]
[1731260026736,11.85257402,211.88,211.81,11.85257402]
[1731260026945,11.85257402,211.89,211.81,11.85257402]
[1731260027147,11.85257402,211.88,211.81,11.85257402]
[1731260027441,11.85257402,211.91,211.84,11.85257402]
[1731260027751,23.902374,211.94,211.81,11.85257402]
[1731260027752,11.85257402,211.89,211.81,11.85257402]
[1731260028045,11.85257402,211.9,211.82,11.85257402]
[1731260028625,11.85257402,211.9,211.83,4.7207]
[1731260028952,23.776884,211.89,211.83,16.57327402]
[1731260029159,23.776884,211.89,211.83,4.7207]
[1731260029444,23.776884,211.89,211.83,16.57327402]
[1731260029643,35.62945802,211.9,211.83,4.7207]
[1731260032637,11.85257402,211.9,211.83,4.7207]
[1731260034044,23.776884,211.91,211.84,11.85257402]
[1731260034549,23.776884,211.91,211.85,4.7203]
[1731260036652,11.85257402,211.92,211.85,4.7203]
[1731260036830,7.51866277,211.93,211.85,12.23896277]
[1731260037725,7.51866277,211.93,211.85,4.7203]
[1731260037933,23.776884,211.94,211.88,4.7196]
[1731260038234,7.51866277,211.93,211.88,4.7196]
[1731260038630,23.776884,211.96,211.88,4.7196]
[1731260038631,7.51866277,211.9,211.88,4.7196]
[1731260038836,11.75295035,211.89,211.82,16.47385035]
[1731260039150,11.75295035,211.88,211.82,4.7209]
[1731260040549,11.75295035,211.85,211.82,4.7209]
[1731260040742,23.776884,211.87,211.82,4.7209]
[1731260040743,35.52983435,211.87,211.82,4.7209]
[1731260041052,11.75295035,211.86,211.82,4.7209]
[1731260041446,23.776884,211.87,211.82,4.7209]
[1731260041447,11.75295035,211.85,211.82,4.7209]
[1731260041741,11.75295035,211.84,211.82,4.7209]
[1731260042431,23.776884,211.87,211.82,4.7209]
[1731260042432,11.75295035,211.85,211.82,4.7209]
[1731260042633,11.75295035,211.85,211.79,4.7216]
[1731260043252,11.75295035,211.84,211.79,4.7216]
[1731260044754,11.75295035,211.82,211.79,4.7216]
[1731260045259,11.75295035,211.8,211.73,4.88204022]
[1731260045548,11.75295035,211.79,211.73,4.88204022]
[1731260046437,11.75295035,211.79,211.73,9.60494022]
[1731260046647,11.75295035,211.78,211.75,11.8063]
[1731260046846,11.75295035,211.76,211.75,11.8063]
[1731260047959,23.902374,211.81,211.75,11.8063]
[1731260048255,11.75295035,211.76,211.7,27.6944]
[1731260048550,11.75295035,211.72,211.7,16.5325]
[1731260049145,11.75295035,211.71,211.65,11.8115]
[1731260049339,11.75295035,211.7,211.65,11.8115]
[1731260049538,11.75295035,211.68,211.65,11.8115]
[1731260049734,0.12549,211.74,211.65,11.8115]
[1731260049735,11.75295035,211.67,211.65,11.8115]
[1731260049957,11.75295035,211.66,211.65,11.8115]
[1731260050440,11.75295035,211.66,211.6,11.8144]
[1731260050638,11.75295035,211.63,211.61,4.7255]
[1731260050836,11.75295035,211.62,211.61,4.7255]
[1731260051062,11.75295035,211.64,211.61,16.5396]
[1731260051740,11.75295035,211.68,211.61,28.29255035]
[1731260053461,11.75295035,211.67,211.61,11.8141]
[1731260053953,11.75295035,211.62,211.61,11.8141]
[1731260055354,11.75295035,211.62,211.57,4.7265]
[1731260055538,11.75295035,211.62,211.55,16.47995035]
[1731260055739,11.75295035,211.63,211.56,11.75295035]
[1731260056053,11.75295035,211.65,211.58,11.75295035]
[1731260056244,23.902374,211.68,211.57,11.8164]
[1731260056442,11.75295035,211.7,211.63,11.75295035]
[1731260056652,23.776884,211.69,211.57,11.8164]
[1731260056857,11.75295035,211.68,211.61,11.75295035]
[1731260057055,11.75295035,211.62,211.57,11.8164]
[1731260057235,11.75295035,211.65,211.58,11.75295035]
[1731260057553,0.1,211.74,211.56,40.1775]
[1731260057753,4.7228,211.74,211.56,40.1775]
[1731260058057,12.79095444,211.74,211.56,40.1775]
[1731260058439,0.12549,211.73,211.57,20.0]
[1731260058659,11.87844035,211.7,211.63,11.75295035]
[1731260059454,11.87844035,211.7,211.59,20.0]
[1731260059752,11.87844035,211.7,211.64,4.725]